Cogmind - Beta 14 *** ADVENTURER MODE // 2024.10.10 @ 19:34:31 // Winter2022/Polymind Player: DeepestRoots Result: Destroyed by D-53 Grenadier with Mini Grenade Launcher Performance ------------- Evolutions (0) 0 Regions Visited (2) 400 Robots Destroyed (12) 60 Value Destroyed (245) 245 Prototype IDs (0) 0 Alien Tech Used (0) 0 Bonus (1120) 1120 TOTAL SCORE: 1675 Bonus ------- Polymind Skill 1120 Cogmind --------- Core Integrity 0/250 Matter 0/0 Energy 100/100 System Corruption 0% Temperature Cool (0) Movement Walking (120) Location -10/Mines Parts ------- > --- POWER (1) -------- Light Angular Momentum Engine > --- PROPULSION (2) --- Carbon-fiber Leg Carbon-fiber Leg > --- UTILITY (2) ------ Improved Heat Sink Improved Heat Sink > --- WEAPON (1) ------- Beamcaster > --- INVENTORY (1) ---- (None) Peak State ------------ > --- POWER ------------ Light Angular Momentum Engine > --- PROPULSION ------- Carbon-fiber Leg Carbon-fiber Leg > --- UTILITY ---------- Improved Heat Sink Improved Heat Sink > --- WEAPON ----------- Beamcaster > --- INVENTORY -------- (None) [Rating: 22] Favorites ----------- Power Ion Engine Engine Ion Engine Propulsion Aluminum Leg Leg Aluminum Leg Flight Unit Flight Unit Utility Backup Plating I Device Heat Sink Protection Backup Plating I Weapon Small Laser Energy Gun Small Laser Ballistic Gun Light Assault Rifle Build | -11 -10 -10 ------- Run | Yrd Mat Min Slots Evolved . | . . . Power . | . . . Propulsion . | . . . Utility . | . . . Weapon . | . . . Parts Attached . | . . . Power . | . . . Engine . | . . . Core . | . . . Reactor . | . . . Propulsion . | . . . Treads . | . . . Leg . | . . . Wheel . | . . . Hover . | . . . Flight . | . . . Utility . | . . . Device . | . . . Storage . | . . . Processor . | . . . Hackware . | . . . Protection . | . . . Artifact . | . . . Weapon . | . . . Energy Gun . | . . . Energy Cannon . | . . . Ballistic Gun . | . . . Ballistic Cannon . | . . . Launcher . | . . . Special Weapon . | . . . Impact Weapon . | . . . Slashing Weapon . | . . . Piercing Weapon . | . . . Special Melee Weapon . | . . . Unidentified Prototypes . | . . . Parts Lost 4 | . 4 . Power 1 | . 1 . Propulsion 2 | . 2 . Utility . | . . . Weapon 1 | . 1 . Highest Loss Streak 2 | . 2 . To Critical Strikes . | . . . Average Slot Usage (%) 72 | . 71 86 Engine 16 | . 16 13 Leg 18 | . 17 27 Flight 7 | . 7 . Device 4 | . 3 27 Protection 8 | . 8 3 Energy Gun 10 | . 9 13 Ballistic Gun 7 | . 8 . Peak Build Rating 22 | . 5 22 Average Rating 4 | . 3 19 On Entrance . | . . 1 Naked Turns 44 | . 42 2 Heaviest Build 16 | . 7 16 Greatest Support 30 | 3 20 30 Greatest Overweight (x) . | . . . Average Overweight (x) . | . . . Largest Inventory Capacity 1 | . 1 1 Average Capacity . | . . . Most Carried . | . . . Average Carried . | . . . Final Capacity 1 | . 1 1 Final Carried . | . . . Class Distribution -------------------- 65% | Grunt 30% | Swarmer 4% | Cogmind Dominant Class ---------------- Grunt | -10/Materials Grunt | -10/Mines Resources | -11 -10 -10 ----------- Run | Yrd Mat Min Matter Collected 23 | . 23 . Remotely . | . . . Salvage Created 467 | . 388 79 Parts 21 | . 21 . Haulers Intercepted . | . . . Recyclers Shooed 3 | . 3 . Parts Field Recycled . | . . . Retrieved Matter . | . . . Parts Self-Destructed . | . . . Prevented . | . . . Kills | -11 -10 -10 ------- Run | Yrd Mat Min Combat Hostiles Destroyed 11 | . 9 2 Guns 11 | . 9 2 Classes Destroyed 4 | . 3 1 Recycler 2 | . 2 . Swarmer 5 | . 5 . Grunt 5 | . 4 1 Assembled 1 | . . 1 Best Kill Streak 3 | . 3 1 Combat Bots Only 3 | . 3 1 Max Kills in Single Turn 1 | . 1 1 Gunslinging . | . . . Exploded . | . . . Melee . | . . . Uniques/NPCs Destroyed . | . . . Combat | -11 -10 -10 -------- Run | Yrd Mat Min Hostile Shots Fired 83 | . 74 9 Missed 26 | . 23 3 Damage Taken 522 | . 421 101 Core 252 | . 207 45 Absorbed by Shields . | . . . Ignored by Resistances 136 | . 128 8 Regen/Repaired (Parts) 24 | . 24 . Core Remaining (%) 100 | 100 . . Volleys Fired 80 | . 74 6 Largest 1 | . 1 1 Hottest 75 | . 40 75 Shots Fired 80 | . 74 6 Gun 80 | . 74 6 Cannon . | . . . Launcher . | . . . Special . | . . . Kinetic 64 | . 64 . Thermal 16 | . 10 6 Explosive . | . . . Electromagnetic . | . . . Robot Hit Streak 16 | . 16 7 Robot Miss Streak 2 | . 2 1 Penetration Max . | . . . Secondary Targets . | . . . Shots Hit Robots 64 | . 59 5 Core Hits 25 | . 23 2 Critical Kills . | . . . Critical Parts Destroyed . | . . . Critical Strikes 1 | . . 1 Burn 1 | . . 1 Melee Attacks . | . . . Impact . | . . . Slashing . | . . . Piercing . | . . . Sneak Attacks . | . . . Combat Hostiles . | . . . Follow-up Attacks . | . . . Damage Inflicted 638 | . 530 108 Guns 606 | . 498 108 Cannons . | . . . Explosions . | . . . Melee . | . . . Ramming 32 | . 32 . Kinetic 451 | . 451 . Thermal 155 | . 47 108 Explosive . | . . . Electromagnetic . | . . . Impact . | . . . Slashing . | . . . Piercing . | . . . Highest Corruption . | . . . Average Corruption . | . . . Corruption Purged . | . . . Corruption Blocked . | . . . Overload Shots . | . . . Overflow Damage . | . . . Projectiles . | . . . Explosions . | . . . Melee . | . . . Knockbacks . | . . . Impact . | . . . Kinetic . | . . . Secondary . | . . . Self-Inflicted Damage . | . . . Shots . | . . . Rammed . | . . . Targets Rammed 8 | . 8 . Kicked 8 | . 8 . Crushed . | . . . Highest Temperature 176 | . 176 . Average Temperature 46 | . 46 . Received Heat Transfer 249 | . 249 . Siege Activations . | . . . Robots Corrupted . | . . . Combat Hostiles . | . . . Parts Fried . | . . . Impact Corruptions . | . . . Robots Melted . | . . . Combat Hostiles . | . . . Parts Melted . | . . . Heat Transferred 359 | . 100 259 Parts Sabotaged . | . . . Parts Stolen . | . . . Parts Stripped . | . . . Power Chain Reactions . | . . . Alert | -11 -10 -10 ------- Run | Yrd Mat Min Peak Influence 190 | . 190 21 Initial 4 | . . 4 Average 69 | . 73 13 Maximum Alert Level . | . . . Low Security (%) 100 | 100 100 100 Level 1 . | . . . Level 2 . | . . . Level 3 . | . . . Level 4 . | . . . Level 5 . | . . . High Security . | . . . Max Security . | . . . Squads Dispatched 2 | . 2 . Investigation 2 | . 2 . Extermination . | . . . Reinforcement . | . . . Assault . | . . . Garrison . | . . . Intercept . | . . . Searches Triggered . | . . . Construction Impeded . | . . . Haulers Reinforced . | . . . Active Scanning Responses . | . . . Cargo Convoy Interrupts . | . . . Stealth | -11 -10 -10 --------- Run | Yrd Mat Min Distress Signals 1 | . 1 . Communications Jammed . | . . . Distress Signals . | . . . Times Spotted 40 | . 32 8 Peak Tracking Total 11 | . 7 11 Tactical Retreats . | . . . Traps | -11 -10 -10 ------- Run | Yrd Mat Min Traps Triggered 4 | . 4 . Indirectly . | . . . Trap Hack Attempts . | . . . Triggered . | . . . Disarmed . | . . . Reprogrammed . | . . . Reused . | . . . Traps Extracted . | . . . Installed . | . . . Triggered . | . . . Machines | -11 -10 -10 ---------- Run | Yrd Mat Min Machines Disabled . | . . . Max in Single Turn . | . . . Machines Repaired . | . . . Machines Dismantled . | . . . Machines Sabotaged . | . . . Overloaded Fab Kills . | . . . Hacking | -11 -10 -10 --------- Run | Yrd Mat Min Machines Accessed 1 | . 1 . Terminals . | . . . Fabricators . | . . . Repair Stations 1 | . 1 . Recycling Units . | . . . Scanalyzers . | . . . Garrison Access . | . . . Total Hacks 3 | . 3 . Successful 3 | . 3 . Failed . | . . . Catastrophic . | . . . Database Lockouts . | . . . Manual . | . . . Terminals . | . . . Fabricators . | . . . Repair Stations 3 | . 3 . Recycling Units . | . . . Scanalyzers . | . . . Garrison Access . | . . . Terminal Hacks . | . . . Fabricator Hacks . | . . . Repair Station Hacks 3 | . 3 . Scan Component 1 | . 1 . Repair 1 | . 1 . Refit 1 | . 1 . Recycling Unit Hacks . | . . . Scanalyzer . | . . . Garrison Access Hacks . | . . . Unauthorized Hacks . | . . . Terminals . | . . . Fabricators . | . . . Repair Stations . | . . . Recycling Units . | . . . Scanalyzers . | . . . Garrison Access . | . . . Data Cores Recovered . | . . . Used . | . . . Hacking Detections . | . . . Full Trace Events . | . . . Feedback Events . | . . . Feedback Blocked . | . . . Robot Schematics Acquired . | . . . Robots Built . | . . . Authchips . | . . . Time . | . . . Total Robot Build Rating . | . . . Part Schematics Acquired . | . . . Parts Built . | . . . Authchips . | . . . Time . | . . . Total Part Build Rating . | . . . Parts Repaired 1 | . 1 . Time 26 | . 26 . Parts Recycled . | . . . Recycled Matter . | . . . Retrieved Matter . | . . . Retrieved Components . | . . . Parts Scanalyzed . | . . . Part Schematics Acquired . | . . . Parts Damaged . | . . . Bothacking | -11 -10 -10 ------------ Run | Yrd Mat Min Used RIF Installer . | . . . Robots Hacked 2 | . 2 . Non-combat . | . . . Combat 2 | . 2 . Robot Hacks Applied 2 | . 2 . find_shortcuts 2 | . 2 . Relay Couplers Released . | . . . Fabnet Peak Effective % . | . . . Robots Rewired . | . . . Allies Hacked . | . . . Hacks Repelled . | . . . Allies | -11 -10 -10 -------- Run | Yrd Mat Min Total Allies . | . . . Largest Group . | . . . Highest-Rated Group . | . . . Highest-Rated Ally . | . . . Total Orders . | . . . Ally Attacks . | . . . Total Damage . | . . . Kills . | . . . Allies Corrupted . | . . . Allies Melted . | . . . Intel | -11 -10 -10 ------- Run | Yrd Mat Min Robot Analysis Total 3 | . 2 1 Derelict Logs Recovered . | . . . Drone Launches . | . . . Drone Recoveries . | . . . Exploration | -11 -10 -10 ------------- Run | Yrd Mat Min Turns Passed 997 | 9 928 60 Spaces Moved 1096 | 18 1034 44 Core 302 | 18 276 8 Treads . | . . . Legs 330 | . 294 36 Wheels . | . . . Hover . | . . . Flight 464 | . 464 . Fastest Speed 37 | 50 37 50 Average Speed 66 | 50 65 107 Slowest Speed 120 | 50 120 120 Overloaded Moves . | . . . Propulsion Burnouts . | . . . Robots Hopped 7 | . 7 . Cave-ins Triggered . | . . . Exploration Rate (%) 38 | 3 96 15 Regions Visited 2 Branch Regions 1 Pre-discovered Areas . | . . . Known Exits Taken . | . . . Unknown Exits Taken 2 | 1 1 . Scrap Searched . | . . . Spaces Dug . | . . . Terrain Destroyed . | . . . Melee . | . . . Projectile . | . . . AOE . | . . . Terrain Rammed . | . . . Walls Destroyed . | . . . Machines Disabled . | . . . Actions | -11 -10 -10 --------- Run | Yrd Mat Min Total 1283 | 17 1215 51 Wait 108 | . 107 1 Move 1080 | 17 1019 44 Hop 7 | . 7 . Pick Up . | . . . Fast Attach . | . . . Attach . | . . . Detach . | . . . Swap . | . . . Drop . | . . . Fire 80 | . 74 6 Melee . | . . . Ram . | . . . Kick 8 | . 8 . Crush . | . . . Escape Stasis . | . . . Rewire . | . . . Trap . | . . . Miscellaneous . | . . . Route ------- -11/Scrapyard -10/Materials (discovered 4 exits: [*Mat x3] / [*Min]) -10/Mines History --------- Turn | Location | Event 4 | -11/Scrapyard | Discovered new exit (range 14) 10 | -11/Scrapyard | Entered Materials 48 | -10/Materials | Discovered new exit (range 6) 116 | -10/Materials | Discovered new exit (range 16) 176 | -10/Materials | Discovered new exit (range 6) 312 | -10/Materials | Core integrity fell below 50% 522 | -10/Materials | Repaired Heat Sink 733 | -10/Materials | Core integrity fell below 20% 781 | -10/Materials | Discovered new exit (range 16) 938 | -10/Materials | Entered Mines 982 | -10/Mines | Assembled infested the area 998 | -10/Mines | Destroyed by D-53 Grenadier with Mini Grenade Launcher Last Messages --------------- 00833_ An alarm sounds. 00833_ ALERT: Alarm triggered, dispatching investigation squad. LOCATION=UNKNOWN GOAL=ESCAPE Something is scanning the area. 00939_ A derelict wanders into view. 00942_ Released control of G-34 Mercenary. 00944_ Took control of 10-SFQ(g). 00944_ Extracted analysis data for Thug. 00944_ G-34 Mercenary reactivates. 00961_ G-34 Mercenary suffers critical hit (Burn). 00961_ G-34 Mercenary destroyed. 00982_ ALERT: Infestation in the mines, dispatching Demolisher response squad. 00983_ as-16115 destroyed. 00998_ C-30 ARC bursts open, deploying its payload. 00998_ D-53 Grenadier unfolds itself. Map ----- +----------------------------------------------------+ | ?????????????????????????????????????????????????? | | ?????????????????????????????????????????????????? | | ?????????????????????????????????????????????????? | | ?????????????????????????????????????????????????? | | ????????????????????????????????""???????????????? | | ???????????????????????????????? ??????????????? | | ??????????????????????????###??? #?? #??????????? | | ?????????????????????????## ### ###%???????????? | | ?????????????????????????? ???????????? | | ?????????????????????????? ???????????? | | ??????????????????????????# ????????????? | | ??????????????????????????# #????????????? | | ????????????#?????????????+ ##???????????? | | ??????????## ?????????????+ #???????????? | | ?????????? ?????????????# #???????????? | | ?????????? ????????????## #???????????? | | ??????????# #????????????# #???????????? | | ??????????# #?????????????# #???????????? | | ??????????# #????????????## #????????????? | | ??????????# #???????????## #???????????????? | | ??????????# #???????????# #???????????????? | | ??????????# ######??????# #???????????????? | | ??????????# #??????## #???????????????? | | ??????????##### #???????# ##???????????????? | | ??????????????# ######### ##????????????????? | | ?????????????## d%d g ##?????????????????? | | ?????????????# % #??????????????????? | | ?????????????# ## ### #??????????????????? | | ?????????????# ## #?## #??????????????????? | | ?????????????# ## #??## #??????????????????? | | ?????????????# ### #???# #??????????????????? | | ?????????????# ##?# ??? ?????????????????? | | ?????????????## #?? ??? ####????????????????? | | ??????????????# ##?? ?? ##???????????????????? | | ??????????????##???? ?? ##????????????????????? | | ???????????????????? ?? #??????????????????????? | | ???????????????????? ??#???????????????????????? | | ???????????????????? ??????????????????????????? | | ???????????????????? ??????????????????????????? | | ???????????????????? ??????????????????????????? | | ???????????????????? ??????????????????????????? | | ???????????????????? ??????????????????????????? | | ?????????????????????????????????????????????????? | | ?????????????????????????????????????????????????? | | ?????????????????????????????????????????????????? | | ?????????????????????????????????????????????????? | | ?????????????????????????????????????????????????? | | ?????????????????????????????????????????????????? | | ?????????????????????????????????????????????????? | | ?????????????????????????????????????????????????? | +----------------------------------------------------+ Best States ------------- Heat Dissipation 48 Energy Generation 23 Energy Capacity 200 Matter Stores 100 Matter Capacity 100 Sight Range 16 Terrain Scan Density 10 Armor Coverage 80 Resistance: KI 20 Resistance: TH 20 Resistance: EX 20 Resistance: EM 20 Resistance: I 20 Resistance: S 20 Resistance: P 20 Evasion (%) 62 Offensive Hacking 10 Item Schematics ----------------- None Robot Schematics ------------------ None Fabricated ------------ Nothing Alien Tech Used ----------------- None Achievements -------------- None Challenges ------------ None Polymind | -11 -10 -10 ---------- Run | Yrd Mat Min Hosts 3 | . 2 1 Combat Hostiles 2 | . 2 . Allies 1 | . . 1 Unique Host Classes 2 | . 2 . Average Host Suspicion 96 | . 100 49 Unsuspicious Activity 47 | . . 47 Returns to Shadow . | . . . Fuzzy Dispatches . | . . . Protomatter Created 53 | . 42 11 Used 35 | . 21 14 Decayed . | . . . Highest Spend 15 | . 15 14 Top 5 Hosts by Kills: S-10 Pest (-10/Materials: 6) G-34 Mercenary (-10/Materials: 3) 10-SFQ(g) (-10/Mines: 2) Game ------ Seed CloakingCryofiberAutogun Manual? 0 Play Time 00:06:45 Cumulative 919.9 hours Start 2024.10.10 @ 19:28:22 End 2024.10.10 @ 19:34:31 Sessions 1 Manual Loads 0 Difficulty Adventurer Special Mode Winter2022/Polymind Game No. 67 Rogue 9 Adventurer 44 Explorer 14 Win Type - Total 46 Types 23/4/10/1/1/2/0/3/2 Lore% 85 Gallery% 94 Achievement% 80 Wizard Run 0 Options --------- Layout 2 ASCII 0 Keyboard 1 Movement Numpad Keybinds 0 Fullscreen 2 Font 48/Terminus++ Map View 50x44 Zoom Use 0% Tactical HUD 1 Map Filters NONE Filters NONE Steam 0 RUN: ce3ceeed-8080-443b-a7b9-c45b06276de4